bitfinex-derivatives/quotes_SOLF0:USTF0_20250614
["timestamp","ask_amount","ask_price","bid_price","bid_amount"]
[1749915628734,6.97074675,144.35,144.33,8.51e-05]
[1749915629630,0.04624675,144.35,144.33,6.9253851]
[1749915630028,0.04624675,144.35,144.33,8.51e-05]
[1749915630227,6.97094675,144.35,144.33,8.51e-05]
[1749915631730,0.04624675,144.35,144.34,36.2]
[1749915632730,0.04624675,144.35,144.34,43.1249]
[1749915633135,0.04624675,144.35,144.34,36.2]
[1749915633330,6.97064675,144.35,144.34,36.2]
[1749915636332,6.9249,144.34,144.33,8.51e-05]
[1749915639538,6.9273,144.29,144.28,36.2]
[1749915640335,5.2690476,144.31,144.25,44.79117194]
[1749915640536,0.05089899,144.29,144.27,0.04921042]
[1749915640935,6.9282,144.28,144.27,0.04921042]
[1749915642132,6.97839899,144.29,144.27,0.04921042]
[1749915642635,6.9278,144.28,144.27,0.04921042]
[1749915643356,12.1968476,144.28,144.27,0.04921042]
[1749915643538,6.9287,144.26,144.25,36.2]
[1749915644248,6.9295,144.25,144.22,36.20005737]
[1749915644436,0.05311134,144.25,144.22,36.24705746]
[1749915645540,6.9302,144.23,144.22,36.24705746]
[1749915646742,6.9302,144.23,144.22,0.04705746]
[1749915647132,6.9299,144.24,144.22,0.04705746]
[1749915647337,2.36991134,144.25,144.22,0.04705746]
[1749915647741,6.9297,144.24,144.22,0.04705746]
[1749915647942,2.36991134,144.25,144.22,0.04705746]
[1749915648142,6.9298,144.24,144.22,0.04705746]
[1749915648342,0.05311134,144.25,144.22,0.04705746]
[1749915648945,0.05311134,144.25,144.22,6.97745746]
[1749915649251,0.05311134,144.25,144.22,0.04705746]
[1749915649545,0.05311134,144.25,144.23,36.22]
[1749915651847,6.98261134,144.25,144.23,36.22]
[1749915652042,0.05311134,144.25,144.23,36.22]
[1749915652547,6.98261134,144.25,144.23,36.22]
[1749915656248,0.05311134,144.25,144.23,36.22]
[1749915658047,6.98231134,144.25,144.23,36.22]
[1749915659143,0.05311134,144.25,144.23,36.22]
[1749915659746,0.05311134,144.25,144.23,43.15]
[1749915660145,0.05311134,144.25,144.23,36.22]
[1749915660357,0.05311134,144.25,144.24,6.9297]
[1749915660555,2.2195,144.3,144.23,36.22]
[1749915660755,2.2195,144.3,144.23,41.4890476]
[1749915660957,2.2195,144.3,144.25,6.9289]
[1749915660958,6.9278,144.28,144.25,6.9289]
[1749915661248,2.2195,144.3,144.23,41.4890476]
[1749915661454,5.2690476,144.27,144.25,0.05205816]
[1749915661665,5.3159563,144.28,144.25,0.05205816]
[1749915661872,74.94794184,144.25,144.22,5.737e-05]
[1749915662048,74.94794184,144.25,144.23,6.9299]
[1749915662249,74.94794184,144.25,144.22,5.737e-05]
[1749915663054,74.99327991,144.25,144.22,0.04645712]
[1749915663251,74.99327991,144.25,144.22,5.31550472]
[1749915663458,74.99327991,144.25,144.24,6.9297]
[1749915663655,74.99327991,144.25,144.24,43.1297]
[1749915665853,74.99327991,144.25,144.22,0.04645712]
[1749915666156,5.2690476,144.24,144.18,36.2]
[1749915666357,6.9321,144.19,144.18,36.2]
[1749915667449,0.0507779,144.2,144.17,0.0467661]
[1749915668047,6.9325,144.19,144.17,0.0467661]
[1749915668252,0.0507779,144.2,144.17,0.0467661]
[1749915668566,6.9825779,144.2,144.17,0.0467661]
[1749915668754,0.0507779,144.2,144.17,0.0467661]
[1749915669357,6.9826779,144.2,144.17,6.9796661]
[1749915669956,0.0507779,144.2,144.18,6.9323]
[1749915670357,0.0507779,144.2,144.17,0.0467661]
[1749915670558,6.9823779,144.2,144.17,6.9794661]
[1749915673461,0.0507779,144.2,144.18,6.9325]
[1749915673760,0.0507779,144.2,144.17,0.0467661]
[1749915673961,6.9824779,144.2,144.17,6.9795661]
[1749915674362,0.0507779,144.2,144.17,0.0467661]
[1749915674860,0.0507779,144.2,144.18,6.9325]
[1749915675056,0.0507779,144.2,144.17,0.0467661]
[1749915677363,6.9825779,144.2,144.17,6.9794661]
[1749915679066,6.9321,144.19,144.17,6.9794661]
[1749915679268,6.9321,144.19,144.17,0.0467661]
[1749915679466,0.0507779,144.2,144.17,0.0467661]
[1749915679666,6.9326,144.18,144.17,0.0467661]
[1749915680162,6.94,144.18,144.09,9.59117194]
[1749915680463,5.2690476,144.16,144.09,1.0]
[1749915680666,6.9348,144.14,144.09,1.0]
[1749915680966,0.0438883,144.13,144.1,36.26633494]
[1749915681163,6.9791883,144.13,144.1,36.26633494]
[1749915681367,0.0438883,144.13,144.1,36.26633494]
[1749915682369,6.9358,144.12,144.1,0.04633494]
[1749915683067,6.9359,144.11,144.1,0.04633494]
[1749915683567,5.3129359,144.13,144.09,1.0]
[1749915683568,5.2690476,144.12,144.09,1.0]
[1749915683770,6.9364,144.1,144.09,1.0]
[1749915685261,2.3024883,144.13,144.09,1.0]
[1749915685764,0.0438883,144.13,144.09,1.0]
[1749915685965,0.0438883,144.13,144.1,37.32]
[1749915686969,0.0438883,144.13,144.1,44.2562]
[1749915687667,6.9789883,144.13,144.1,44.2562]
[1749915688670,0.0438883,144.13,144.11,6.9358]
[1749915689070,0.0438883,144.13,144.1,37.32]
[1749915689469,0.0438883,144.13,144.1,44.256]
[1749915690275,6.9791883,144.13,144.1,44.256]
[1749915690477,0.0438883,144.13,144.11,6.9359]
[1749915693079,0.0438883,144.13,144.12,6.9355]
[1749915693281,0.0438883,144.13,144.11,37.38747262]
[1749915693781,0.0438883,144.13,144.12,6.9355]
[1749915695087,0.0438883,144.13,144.11,37.38747262]
[1749915695780,6.9791883,144.13,144.11,37.38747262]
[1749915696782,6.9355,144.12,144.11,37.38747262]
[1749915696985,0.0438883,144.13,144.11,37.38747262]
[1749915697179,6.9791883,144.13,144.11,37.38747262]
[1749915699789,6.9355,144.12,144.11,37.38747262]
[1749915701890,6.9355,144.12,144.11,0.04747262]
[1749915707487,6.9790883,144.13,144.11,0.04747262]
[1749915707881,0.0438883,144.13,144.11,0.04747262]
[1749915708084,6.9788883,144.13,144.11,0.04747262]
[1749915708390,0.0438883,144.13,144.11,0.04747262]
[1749915708586,6.9355,144.12,144.11,0.04747262]
[1749915712690,6.9369,144.09,144.08,37.34]
[1749915713086,6.9369,144.09,144.05,44.2784]
[1749915713296,6.9369,144.09,144.05,37.34]
[1749915713598,6.9369,144.09,144.06,6.9381]
[1749915713787,6.98387106,144.08,144.06,0.05197862]
[1749915714099,0.04647106,144.08,144.06,0.05197862]
[1749915714298,6.9379,144.07,144.06,0.05197862]
[1749915715592,6.98387106,144.08,144.06,0.05197862]
[1749915715789,0.04647106,144.08,144.06,0.05197862]
[1749915716100,6.9379,144.07,144.06,0.05197862]
[1749915717398,6.98387106,144.08,144.06,0.05197862]
[1749915717693,0.04647106,144.08,144.06,0.05197862]
[1749915718599,6.9379,144.07,144.06,0.05197862]
[1749915719696,0.04647106,144.08,144.06,0.05197862]
[1749915720900,0.04647106,144.08,144.07,6.9379]
[1749915722006,6.9349,144.14,144.06,5.32102622]
[1749915722209,44.6582476,144.16,144.08,5.2690476]
[1749915722407,44.6582476,144.16,144.09,44.0166]
[1749915723206,6.935,144.13,144.11,0.0528828]
[1749915723507,0.04438293,144.14,144.11,0.0528828]
[1749915724511,6.9354,144.12,144.11,0.0528828]
[1749915726108,6.9352,144.13,144.11,0.0528828]
[1749915727311,6.9354,144.12,144.11,0.0528828]
[1749915730109,42.3490476,144.12,144.04,8.5853222]
[1749915730417,5.2690476,144.1,144.04,8.5853222]
[1749915730606,5.2690476,144.11,144.04,8.5853222]
[1749915730806,5.2690476,144.11,144.03,8.5853222]
[1749915731006,0.04614858,144.08,144.06,0.05030645]
[1749915731809,6.98354858,144.08,144.06,0.05030645]
[1749915732209,0.04614858,144.08,144.06,44.06860645]
[1749915732407,0.04614858,144.08,144.06,37.13030645]
[1749915732613,0.04614858,144.08,144.07,15.5232222]
[1749915732809,0.04614858,144.08,144.07,6.9379]
[1749915733011,0.04614858,144.08,144.06,45.71562865]
[1749915733213,0.04614858,144.08,144.06,37.13030645]
[1749915733912,37.08,144.18,144.07,5.2690476]
[1749915734119,7.5782476,144.16,144.08,8.62561377]
[1749915734506,6.9347,144.14,144.08,8.62561377]
[1749915734906,7.5782476,144.16,144.1,6.9359]
[1749915735106,0.04882091,144.13,144.11,0.04455548]
[1749915735310,37.08,144.21,144.11,5.31360308]
[1749915735517,5.2690476,144.2,144.12,8.62561377]
[1749915735813,6.9325,144.19,144.12,8.62561377]
[1749915736015,5.2690476,144.2,144.12,8.62561377]
[1749915736212,6.9336,144.16,144.11,8.62561377]
[1749915736417,0.05141954,144.15,144.12,15.61082657]
[1749915736620,0.05141954,144.15,144.12,8.67572657]
[1749915736820,0.05141954,144.15,144.12,0.0501128]
[1749915737412,6.98551954,144.15,144.12,6.9853128]
[1749915740314,0.05141954,144.15,144.12,0.0501128]
[1749915740814,6.9348,144.14,144.12,0.0501128]
[1749915742024,6.98561954,144.15,144.12,6.9854128]
[1749915742221,0.05141954,144.15,144.12,0.0501128]
[1749915742522,6.9347,144.14,144.12,0.0501128]
[1749915742824,0.05141954,144.15,144.12,0.0501128]
[1749915743028,6.98571954,144.15,144.12,6.9852128]
[1749915743420,0.05141954,144.15,144.12,0.0501128]
[1749915744119,6.935,144.13,144.12,0.0501128]
[1749915744821,6.9347,144.14,144.12,0.0501128]
[1749915746024,6.935,144.13,144.12,0.0501128]
[1749915746615,6.9364,144.11,144.08,8.62561377]
[1749915746818,6.9364,144.11,144.07,45.70561377]
[1749915747021,6.9364,144.11,144.08,6.9371]
[1749915747324,5.2690476,144.13,144.07,45.70561377]
[1749915747524,5.2690476,144.13,144.07,44.0175]
[1749915747727,0.05189172,144.11,144.09,0.04766523]
[1749915748019,6.9364,144.1,144.09,0.04766523]
[1749915748621,6.98809172,144.11,144.09,0.04766523]
[1749915752127,6.9364,144.1,144.09,0.04766523]
[1749915755322,6.9364,144.1,144.03,146.52561377]
[1749915755323,5.32093932,144.11,144.03,8.62561377]
[1749915755526,5.32093932,144.11,143.98,19.91980178]
[1749915755527,5.29359203,144.04,143.98,2.74915737]
[1749915755727,37.08,144.03,143.98,2.74915737]
[1749915755922,37.08,144.02,143.98,2.74915737]
[1749915756123,37.08,144.01,143.9,37.08]
[1749915756425,0.04564684,143.97,143.94,0.04759814]
[1749915756626,0.04915607,143.97,143.94,37.13112287]
[1749915756826,6.9399,144.03,143.94,37.13112287]
[1749915757029,37.08,144.06,143.95,4.0883]
[1749915757335,6.9396,144.04,143.95,41.1683]
[1749915757937,0.05217511,144.01,143.98,0.04718504]
[1749915758233,37.08,144.06,143.99,37.08]
[1749915758432,6.9396,144.04,144.0,6.9412]
[1749915759034,0.04688258,144.03,144.01,0.05024566]
[1749915759932,0.04688258,144.03,144.01,6.99094566]
[1749915760529,0.04688258,144.03,144.01,0.05024566]
[1749915760935,6.9403,144.02,144.01,0.05024566]
[1749915762039,6.9403,144.02,144.01,4.566e-05]
[1749915762225,6.9427,143.97,143.96,37.1]
[1749915762425,6.9427,143.97,143.94,6.9439]
[1749915763233,6.9432,143.96,143.94,0.04929815]
[1749915763539,0.05102267,143.97,143.94,0.04929815]
[1749915764737,0.05102267,143.97,143.96,6.9431]
[1749915764939,0.05102267,143.97,143.94,6.81579815]
[1749915765237,0.05102267,143.97,143.95,6.9433]
[1749915766243,0.05102267,143.97,143.96,6.9431]
[1749915768831,37.1,144.02,143.98,6.9418]
[1749915769036,38.9649,144.05,143.94,6.7665]
[1749915769340,6.9408,144.01,143.97,6.9423]
[1749915769540,38.9649,144.05,143.94,6.7665]
[1749915769730,0.04707903,144.01,143.99,6.9414]
[1749915770448,0.04707903,144.01,144.0,6.9412]
[1749915770834,38.86,144.08,144.02,6.94]
[1749915771143,38.86,144.08,143.97,38.86]
[1749915771536,6.9391,144.05,144.01,6.9404]
[1749915771838,6.9391,144.05,144.02,0.05314204]
[1749915772045,0.05118063,144.04,144.02,0.05314204]
[1749915772433,6.99048063,144.04,144.02,0.05314204]
[1749915772744,0.05118063,144.04,144.02,6.99334204]
[1749915773342,0.05118063,144.04,144.02,0.05314204]
[1749915775837,0.05118063,144.04,144.02,6.99324204]
[1749915776738,0.05118063,144.04,144.03,6.9398]
[1749915776934,0.05118063,144.04,144.02,0.05314204]
[1749915778145,0.05118063,144.04,144.03,6.9398]
[1749915778346,0.05118063,144.04,144.02,0.05314204]
[1749915779348,0.05118063,144.04,144.02,6.99334204]
[1749915779649,0.05118063,144.04,144.02,0.05314204]
[1749915780542,6.9398,144.03,144.02,0.05314204]
[1749915781148,6.9398,144.03,144.02,4.204e-05]
[1749915781348,6.9429,143.97,143.94,45.6065]
[1749915781746,38.84,144.04,143.94,45.6065]
[1749915781947,0.2029,144.03,143.94,43.3451]
[1749915782343,6.9422,143.98,143.97,0.04643839]
[1749915783250,0.04870799,144.0,143.97,0.04643839]
[1749915783251,6.942,143.99,143.97,0.04643839]
[1749915783440,0.04870799,144.0,143.97,0.04643839]
[1749915786151,6.9422,143.98,143.97,0.04643839]
[1749915789653,6.9419,143.99,143.97,0.04643839]
[1749915789850,0.04870799,144.0,143.97,0.04643839]
[1749915790247,6.9422,143.98,143.97,0.04643839]
[1749915792660,6.942,143.99,143.97,0.04643839]
[1749915792958,0.04870799,144.0,143.97,0.04643839]
[1749915793157,6.9422,143.98,143.97,0.04643839]
[1749915793860,6.9419,143.99,143.97,0.04643839]
[1749915794255,0.04870799,144.0,143.97,0.04643839]
[1749915794658,6.9422,143.98,143.97,0.04643839]
[1749915796652,0.04870799,144.0,143.97,0.04643839]
[1749915797159,0.04870799,144.0,143.98,6.9419]
[1749915797355,0.04870799,144.0,143.97,0.04643839]
[1749915798258,0.04870799,144.0,143.97,6.98903839]
[1749915798660,0.04870799,144.0,143.97,0.04643839]
[1749915798860,6.9418,143.99,143.97,0.04643839]
[1749915799865,6.9422,143.98,143.97,0.04643839]
[1749915801258,6.9422,143.98,143.97,3.839e-05]
[1749915805267,38.60870799,144.0,143.89,4.5859]
[1749915805567,38.56,144.0,143.89,4.5859]
[1749915806161,38.56,144.0,143.9,6.9458]
[1749915806366,0.04390973,143.96,143.94,0.04514698]
[1749915807065,6.9436,143.95,143.94,4.698e-05]
[1749915807265,6.9436,143.95,143.86,12.84217399]
[1749915807266,38.56,143.95,143.83,12.84217399]
[1749915807461,38.56,143.95,143.84,19.89077399]
[1749915807669,38.56,143.95,143.87,6.947]
[1749915807869,38.56,143.95,143.84,19.89077399]
[1749915808072,38.56,143.96,143.85,51.40217399]
[1749915808273,13.8828,144.0,143.89,0.04477651]
[1749915808274,0.05081192,143.92,143.89,0.04477651]
[1749915808473,0.04977551,143.92,143.89,0.04988715]
[1749915808781,6.9455,143.91,143.89,0.04988715]
[1749915808973,0.04977551,143.92,143.89,8.715e-05]
[1749915809778,6.946,143.9,143.89,8.715e-05]
[1749915810479,0.04977551,143.92,143.89,8.715e-05]
[1749915811074,0.04977551,143.92,143.9,38.56]
[1749915811381,6.99507551,143.92,143.9,43.1348]
[1749915811575,0.04977551,143.92,143.9,43.1348]
[1749915812070,6.9455,143.91,143.89,8.715e-05]
[1749915812269,0.04977551,143.92,143.89,8.715e-05]
[1749915814280,6.946,143.9,143.89,8.715e-05]
[1749915814671,0.04977551,143.92,143.89,8.715e-05]
[1749915814874,6.9458,143.91,143.89,8.715e-05]
[1749915815684,6.946,143.9,143.89,8.715e-05]
[1749915816275,0.04977551,143.92,143.89,8.715e-05]
[1749915816881,6.99517551,143.92,143.89,8.715e-05]
[1749915817074,0.04977551,143.92,143.89,8.715e-05]
[1749915817277,0.04977551,143.92,143.89,6.94628715]
[1749915818274,0.04977551,143.92,143.89,8.715e-05]
[1749915819384,6.946,143.9,143.89,8.715e-05]
[1749915820976,6.9457,143.91,143.89,8.715e-05]
[1749915821177,0.04977551,143.92,143.89,8.715e-05]
[1749915821377,6.9458,143.91,143.89,8.715e-05]
[1749915821681,0.04977551,143.92,143.89,8.715e-05]
[1749915821880,6.9458,143.91,143.89,8.715e-05]
[1749915822380,0.04977551,143.92,143.89,8.715e-05]
[1749915822586,6.946,143.9,143.89,8.715e-05]
[1749915824876,0.04977551,143.92,143.89,8.715e-05]
[1749915825787,6.946,143.9,143.89,8.715e-05]
[1749915827780,6.9456,143.91,143.89,8.715e-05]
[1749915827987,0.04977551,143.92,143.89,8.715e-05]
[1749915828386,6.946,143.9,143.89,8.715e-05]
[1749915828590,0.04977551,143.92,143.89,8.715e-05]
[1749915828989,6.9458,143.91,143.89,8.715e-05]
[1749915829792,6.946,143.9,143.89,8.715e-05]
[1749915831093,0.04977551,143.92,143.89,8.715e-05]
[1749915831487,6.9458,143.91,143.89,8.715e-05]
[1749915832193,6.946,143.9,143.89,8.715e-05]
[1749915832888,6.9457,143.91,143.89,8.715e-05]
[1749915833395,6.946,143.9,143.89,8.715e-05]
[1749915836497,6.94,143.9,143.79,12.84217399]
[1749915836690,0.2057,143.91,143.81,6.9502]
[1749915836892,0.2057,143.91,143.78,12.84217399]
[1749915837098,38.98,143.9,143.79,38.98]
[1749915837392,38.98,143.9,143.8,6.9506]
[1749915837597,0.04826995,143.86,143.8,6.9506]
[1749915837998,0.04826995,143.86,143.81,6.9501]
[1749915838199,38.98,143.85,143.77,12.84217399]
[1749915838501,0.05162131,143.82,143.77,2.3225]
[1749915838687,6.951,143.8,143.77,2.3225]
[1749915838892,0.05299438,143.81,143.77,2.3225]
[1749915839795,6.9509,143.8,143.77,2.3225]
[1749915840295,6.9514,143.79,143.77,2.3225]
[1749915841401,6.951,143.8,143.77,2.3225]
[1749915841698,0.05299438,143.81,143.77,41.3025]
[1749915841896,38.98,143.87,143.79,8.62085392]
[1749915842091,6.9483,143.86,143.79,8.62085392]
[1749915842296,6.9483,143.86,143.77,54.14467399]
[1749915842297,38.98,143.9,143.8,8.62085392]
[1749915842605,6.948,143.86,143.82,6.9495]
[1749915842796,0.04819287,143.85,143.83,2.41049625]
[1749915842994,6.9478,143.87,143.83,9.35949625]
[1749915843195,38.98,143.9,143.83,2.41049625]
[1749915843498,6.9483,143.86,143.83,2.41049625]
[1749915844100,6.9484,143.85,143.83,2.41049625]
[1749915845302,6.9489,143.84,143.83,0.04649625]
[1749915845800,6.9485,143.85,143.83,0.04649625]
[1749915845999,0.04493925,143.86,143.83,0.04649625]
[1749915846301,6.9471,143.88,143.83,13.30945017]
[1749915846597,39.0,143.91,143.84,8.62085392]
[1749915846804,6.9465,143.89,143.84,8.62085392]
[1749915846997,400.06,143.92,143.85,8.62085392]
[1749915847193,39.0,143.93,143.85,8.62085392]
[1749915847395,0.0531563,143.9,143.88,0.04427207]
[1749915847599,6.9464,143.89,143.88,0.04427207]
[1749915848898,6.9991563,143.9,143.88,0.04427207]
[1749915849904,6.9465,143.89,143.88,0.04427207]
[1749915850206,0.0531563,143.9,143.88,0.04427207]
[1749915851007,38.98,143.96,143.89,6.9464]
[1749915851204,38.98,143.96,143.89,9.2645]
[1749915851601,6.9447,143.93,143.89,9.2645]
[1749915852006,0.04416686,143.92,143.9,0.05225067]
[1749915852303,0.04416686,143.92,143.9,6.99815067]
[1749915852498,6.9442,143.94,143.9,6.99815067]
[1749915853005,6.9442,143.94,143.9,45.97815067]
[1749915853406,0.04429634,143.93,143.9,39.03225067]
[1749915853609,38.98,143.97,143.9,39.03225067]
[1749915853805,38.98,144.0,143.9,39.03225067]
[1749915854008,38.98,144.0,143.9,38.98]
[1749915854510,0.05188146,143.96,143.94,0.05309284]
[1749915854816,0.04559762,143.96,143.94,0.04404019]
[1749915855198,6.98909762,143.96,143.94,0.04404019]
[1749915856011,0.04559762,143.96,143.94,0.04404019]
[1749915856614,6.9424,143.98,143.94,6.98804019]
[1749915856911,6.9424,143.98,143.94,45.204]
[1749915857315,6.9427,143.97,143.94,38.26]
[1749915857616,0.05328867,143.97,143.94,38.30604033]
[1749915858315,38.26,144.03,143.94,38.30604033]
[1749915858513,38.26,144.03,143.94,38.26]
[1749915858714,38.26,144.03,143.95,4.432]
[1749915859316,6.9424,143.98,143.95,4.432]
[1749915859615,6.9424,143.98,143.95,4.48376405]
[1749915860611,6.9418,143.99,143.95,11.42716405]
[1749915861520,6.9418,143.99,143.96,6.9431]
[1749915862012,6.9418,143.99,143.95,11.42726405]
[1749915862812,6.9418,143.99,143.96,6.943]
[1749915863517,6.9418,143.99,143.96,9.1613]
[1749915863718,6.9884902,144.0,143.96,9.1613]
[1749915863914,0.0471902,144.0,143.96,2.2183]
[1749915864314,0.0471902,144.0,143.98,6.9421]
[1749915865216,0.0471902,144.0,143.99,6.9416]
[1749915865418,38.24,144.06,143.98,0.04951213]
[1749915865622,38.24,144.06,143.98,38.24]
[1749915866224,38.24,144.06,144.0,6.9411]
[1749915866433,0.04400751,144.04,144.02,0.04400406]
[1749915866721,6.9398,144.03,144.02,0.04400406]
[1749915873522,0.04400751,144.04,143.96,2.2183]
[1749915873725,38.24,144.03,143.95,40.4604]
[1749915873926,38.24,144.03,143.92,40.5092]
[1749915874227,6.9438,143.95,143.92,40.5092]
[1749915874422,38.24,144.03,143.92,40.5092]
[1749915874630,0.04839287,143.99,143.96,0.05329622]
[1749915874832,6.9426,143.97,143.96,0.05329622]
[1749915875223,6.9423,143.98,143.96,0.05329622]
[1749915875725,0.04839287,143.99,143.96,0.05329622]
[1749915875920,6.9426,143.97,143.96,0.05329622]
[1749915876531,6.9423,143.98,143.96,0.05329622]
[1749915877027,0.04839287,143.99,143.96,0.05329622]
[1749915877618,0.04839287,143.99,143.96,38.29329622]
[1749915877832,0.04839287,143.99,143.98,6.9421]
[1749915880733,438.3,144.07,144.0,6.9409]
[1749915881132,6.9395,144.04,144.0,6.9409]
[1749915881330,400.06,144.07,144.0,6.9409]
[1749915881830,0.04969502,144.05,144.02,0.04974792]
[1749915882224,6.98869502,144.05,144.02,0.04974792]
[1749915882732,0.04969502,144.05,144.02,0.04974792]
[1749915882933,6.9397,144.03,144.02,0.04974792]
[1749915890129,38.24,144.04,143.96,37.74]
[1749915890731,6.9414,144.0,143.97,6.9424]
[1749915891238,6.9417,143.99,143.97,0.04503193]
[1749915892542,6.9421,143.98,143.97,0.04503193]
[1749915892938,0.044055,144.0,143.97,0.04503193]
[1749915894342,6.942,143.99,143.97,0.04503193]
[1749915895844,6.9421,143.98,143.97,0.04503193]
[1749915896144,0.044055,144.0,143.97,0.04503193]
[1749915897147,6.9421,143.98,143.97,0.04503193]
[1749915899246,6.9418,143.99,143.97,0.04503193]
[1749915900249,0.044055,144.0,143.97,0.04503193]
[1749915900846,0.044055,144.0,143.97,2.33833193]
[1749915901256,37.74,144.08,143.97,15.18050592]
[1749915901457,37.74,144.08,143.98,15.19367399]
[1749915901648,37.74,144.08,144.02,6.9402]
[1749915902058,6.939,144.05,144.01,6.9405]
[1749915902258,0.05314293,144.04,144.02,0.04604483]
[1749915903353,6.9397,144.03,144.02,0.04604483]
[1749915904157,6.9397,144.03,143.98,2.3515]
[1749915904158,6.9418,143.99,143.97,40.0333]
[1749915904357,37.74,144.04,143.97,40.0333]
[1749915905162,0.04624846,144.02,143.99,0.04542058]
[1749915905465,0.05015602,144.02,143.99,0.05341752]
[1749915905762,6.941,144.01,143.99,2.28801752]
[1749915906358,6.9412,144.0,143.99,0.05341752]
[1749915906558,37.79015602,144.02,143.92,37.74]
[1749915906863,5.43462604,144.01,143.92,44.6848]
[1749915907163,37.74,144.02,143.92,37.74]
[1749915907564,6.9429,143.97,143.96,0.04629525]
[1749915908859,0.05323086,143.98,143.96,0.04629525]
[1749915910061,6.99543086,143.98,143.96,0.04629525]
[1749915910362,0.05323086,143.98,143.96,0.04629525]
[1749915910560,6.9426,143.97,143.96,0.04629525]
[1749915910960,37.79323086,143.98,143.91,6.7253]
[1749915911157,37.74,143.98,143.91,6.7253]
[1749915911355,37.74,143.98,143.91,4.4773]
[1749915911554,6.9453,143.92,143.89,44.6863]
[1749915911755,37.74,143.98,143.89,37.74]
[1749915911960,0.04587782,143.95,143.92,0.05238184]
[1749915912362,6.9449,143.93,143.92,0.05238184]
[1749915912662,37.74,143.94,143.87,6.839]
[1749915912858,6.9463,143.9,143.87,4.5182]
[1749915913058,37.74,143.94,143.86,37.74]
[1749915913272,37.74,143.94,143.83,50.58217399]
[1749915913461,6.9469,143.89,143.87,0.04686158]
[1749915914459,6.947,143.88,143.87,0.04686158]
[1749915916164,6.9467,143.89,143.87,0.04686158]
[1749915916358,0.0484414,143.9,143.87,0.04686158]
[1749915916558,6.9465,143.89,143.87,0.04686158]
[1749915916756,0.0484414,143.9,143.87,0.04686158]
[1749915918164,6.9465,143.89,143.87,0.04686158]
[1749915918464,0.0484414,143.9,143.87,0.04686158]
[1749915918665,6.9466,143.89,143.87,0.04686158]
[1749915918865,0.0484414,143.9,143.87,0.04686158]
[1749915919564,6.947,143.88,143.87,0.04686158]
[1749915921661,0.0484414,143.9,143.87,0.04686158]
[1749915922264,6.947,143.88,143.87,0.04686158]
[1749915922570,0.0484414,143.9,143.87,0.04686158]
[1749915922762,6.9469,143.89,143.87,0.04686158]
[1749915922964,0.0484414,143.9,143.87,0.04686158]
[1749915923266,6.9948414,143.9,143.87,0.04686158]
[1749915923468,0.0484414,143.9,143.87,0.04686158]
[1749915923766,6.9469,143.89,143.87,0.04686158]
[1749915924267,6.9946414,143.9,143.87,0.04686158]
[1749915924465,0.0484414,143.9,143.87,0.04686158]
[1749915925364,6.9468,143.89,143.87,0.04686158]
[1749915925564,0.0484414,143.9,143.87,0.04686158]
[1749915926068,0.0484414,143.9,143.87,37.28686158]
[1749915926270,37.24,143.96,143.88,4.763]
[1749915926461,37.24,143.96,143.88,11.7096]
[1749915926869,37.24,143.96,143.88,4.763]
[1749915927171,6.9451,143.92,143.91,0.05208961]
[1749915927564,0.04587446,143.93,143.91,0.05208961]
[1749915927766,6.99057446,143.93,143.91,0.05208961]
[1749915928667,37.24,143.92,143.83,8.61303937]
[1749915928866,37.24,143.92,143.8,37.24]
[1749915928867,37.24,143.92,143.82,9.3237]
[1749915929057,37.24,143.92,143.82,2.3742]
[1749915929058,6.9478,143.87,143.82,2.3742]
[1749915929262,37.24,143.92,143.82,2.3742]
[1749915929458,37.24,143.92,143.83,6.949]
[1749915929664,6.9476,143.87,143.86,0.05166726]
[1749915933575,6.9502,143.82,143.8,2.2749]
[1749915933870,37.24,143.88,143.8,2.2749]
[1749915934070,6.9487,143.85,143.8,2.2749]
[1749915934276,6.9487,143.85,143.81,6.95]
[1749915934672,0.04759157,143.84,143.82,0.04574459]
[1749915935173,6.9477,143.87,143.83,6.9494]
[1749915935378,37.24,143.88,143.83,2.3081]
[1749915935677,6.9476,143.87,143.83,2.3081]
[1749915935877,37.24,143.88,143.83,2.3081]
[1749915936073,0.05106491,143.87,143.83,9.2572]
[1749915936378,0.05106491,143.87,143.83,2.3081]